fUST/lending_fUST_20250506
["ID","MTS","AMOUNT","RATE_DAILY","PERIOD"]
[359989769,1746466252648,-400.0,0.0003315,8]
[359989770,1746466252658,-400.0,0.0003315,8]
[359989771,1746466252668,-2098.43,0.0003315,8]
[359989772,1746466252776,-544.02,0.0003315,8]
[359989773,1746466252786,-404.66497173,0.0003315,8]
[359989774,1746466252795,-204.33896911,0.0003315,8]
[359989775,1746466252805,-296.88359585,0.0003315,8]
[359989776,1746466252815,-942.66,0.0003315,8]
[359989777,1746466252824,-400.0,0.0003315,8]
[359989778,1746466252834,-400.0,0.0003315,8]
[359989779,1746466252844,-482.77970763,0.0003315,8]
[359989780,1746466252855,-400.0,0.0003315,8]
[359989781,1746466252866,-400.0,0.0003315,8]
[359989782,1746466252877,-400.0,0.0003315,8]
[359989783,1746466252887,-1085.21,0.0003315,8]
[359989784,1746466252897,-400.0,0.0003315,8]
[359989785,1746466252906,-400.0,0.0003315,8]
[359989786,1746466252916,-400.0,0.0003315,8]
[359989787,1746466252926,-400.0,0.0003315,8]
[359989788,1746466252936,-400.0,0.0003315,8]
[359989789,1746466252946,-400.0,0.0003315,8]
[359989790,1746466252956,-413.54,0.0003315,8]
[359989791,1746466252966,-400.0,0.0003315,8]
[359989792,1746466252975,-400.0,0.0003315,8]
[359989793,1746466252985,-400.0,0.0003315,8]
[359989794,1746466252996,-151.0,0.0003315,14]
[359989795,1746466253005,-151.0,0.0003315,14]
[359989796,1746466253015,-151.0,0.0003315,14]
[359989797,1746466253024,-151.0,0.0003315,14]
[359989798,1746466253034,-441.99,0.0003315,8]
[359989799,1746466253044,-400.0,0.0003315,8]
[359989800,1746466253053,-400.0,0.0003315,8]
[359989801,1746466253063,-3512.58,0.0003315,2]
[359989802,1746466253072,-400.0,0.0003315,8]
[359989803,1746466253082,-304.91783303,0.0003315,7]
[359989804,1746466253091,-400.0,0.0003315,8]
[359989805,1746466253101,-400.0,0.0003315,8]
[359989806,1746466253110,-400.0,0.0003315,8]
[359989807,1746466253121,-400.0,0.0003315,8]
[359989808,1746466253130,-400.0,0.0003315,8]
[359989809,1746466253140,-545.82,0.0003315,8]
[359989810,1746466253151,-400.0,0.0003315,8]
[359989811,1746466253160,-400.0,0.0003315,8]
[359989812,1746466253171,-400.0,0.0003315,8]
[359989813,1746466253180,-400.0,0.0003315,8]
[359989814,1746466253190,-748.45,0.0003315,8]
[359989815,1746466253200,-1080.9,0.0003315,8]
[359989816,1746466253210,-617.8,0.0003315,8]
[359989817,1746466253220,-226.343763,0.0003315,14]
[359989818,1746466253229,-400.0,0.0003315,8]
[359989819,1746466253238,-226.343763,0.0003315,14]
[359989820,1746466253249,-400.0,0.0003315,8]
[359989821,1746466253259,-521.08,0.0003315,8]
[359989822,1746466253271,-400.0,0.0003315,8]
[359989823,1746466253282,-226.343763,0.0003315,14]
[359989824,1746466253292,-226.343765,0.0003315,14]
[359989825,1746466253301,-400.0,0.0003315,8]
[359989826,1746466253311,-151.0,0.0003315,14]
[359989827,1746466253320,-151.0,0.0003315,14]
[359989828,1746466253330,-167.821071,0.0003315,14]
[359989829,1746466253339,-400.0,0.0003315,8]
[359989830,1746466253348,-400.0,0.0003315,8]
[359989831,1746466253358,-580.82,0.0003315,8]
[359989832,1746466253368,-1700.23,0.0003315,8]
[359989833,1746466253377,-400.0,0.0003315,8]
[359989834,1746466253387,-400.0,0.0003315,8]
[359989835,1746466253396,-400.0,0.0003315,8]
[359989836,1746466253406,-400.0,0.0003315,8]
[359989837,1746466253415,-400.0,0.0003315,8]
[359989838,1746466253424,-421.77,0.0003315,8]
[359989839,1746466253434,-500.0,0.0003315,8]
[359989840,1746466253443,-400.0,0.0003315,8]
[359989841,1746466253453,-400.0,0.0003315,8]
[359989842,1746466253462,-1322.26,0.0003315,8]
[359989843,1746466253472,-151.0,0.0003315,14]
[359989844,1746466253481,-400.0,0.0003315,8]
[359989845,1746466253491,-151.0,0.0003315,14]
[359989846,1746466253501,-151.0,0.0003315,14]
[359989847,1746466253512,-151.0,0.0003315,14]
[359989848,1746466253522,-400.0,0.0003315,8]
[359989849,1746466253532,-400.0,0.0003315,8]
[359989850,1746466253542,-400.0,0.0003315,8]
[359989851,1746466253552,-151.0,0.0003315,14]
[359989852,1746466253561,-151.0,0.0003315,14]
[359989853,1746466253571,-155.676472,0.0003315,14]
[359989854,1746466253580,-400.0,0.0003315,8]
[359989855,1746466253589,-2273.92,0.0003315,8]
[359989856,1746466253599,-271.177843,0.0003315,14]
[359989857,1746466253609,-400.0,0.0003315,8]
[359989858,1746466253618,-942.85,0.0003315,8]
[359989859,1746466253627,-316.26635777,0.0003315,8]
[359989860,1746466253637,-302.913528,0.0003315,14]
[359989861,1746466253646,-400.0,0.0003315,8]
[359989862,1746466253655,-302.913528,0.0003315,14]
[359989863,1746466253664,-302.913528,0.0003315,14]
[359989864,1746466253673,-302.913528,0.0003315,14]
[359989865,1746466253683,-311.15332568,0.0003315,8]
[359989866,1746466253692,-1099.01,0.0003315,8]
[359989867,1746466253701,-2641.87,0.0003315,8]
[359989868,1746466253710,-400.0,0.0003315,8]
[359989869,1746466253719,-302.913528,0.0003315,14]
[359989870,1746466253728,-302.913528,0.0003315,14]
[359989871,1746466253739,-302.913528,0.0003315,14]
[359989872,1746466253748,-302.913528,0.0003315,14]
[359989873,1746466253759,-504.9,0.0003315,8]
[359989874,1746466253769,-400.0,0.0003315,8]
[359989875,1746466253778,-2078.31,0.0003315,8]
[359989876,1746466253788,-505.28799801,0.0003315,8]
[359989877,1746466253797,-400.0,0.0003315,8]
[359989878,1746466253806,-400.0,0.0003315,8]
[359989879,1746466253816,-1796.69,0.0003315,8]
[359989880,1746466253826,-404.27,0.0003315,8]
[359989881,1746466253835,-400.0,0.0003315,8]
[359989882,1746466253845,-400.0,0.0003315,8]
[359989883,1746466253854,-997.13,0.0003315,8]
[359989884,1746466253864,-400.0,0.0003315,8]
[359989885,1746466253874,-400.0,0.0003315,8]
[359989886,1746466253883,-2875.2,0.0003315,8]
[359989887,1746466253892,-400.0,0.0003315,8]
[359989888,1746466253901,-400.0,0.0003315,8]
[359989889,1746466253911,-933.37,0.0003315,8]
[359989890,1746466253920,-400.0,0.0003315,8]
[359989891,1746466253929,-400.0,0.0003315,8]
[359989892,1746466253939,-400.0,0.0003315,8]
[359989893,1746466253948,-500.0,0.0003315,8]
[359989894,1746466253957,-400.0,0.0003315,8]
[359989895,1746466253967,-400.0,0.0003315,8]
[359989896,1746466253975,-400.0,0.0003315,8]
[359989897,1746466253985,-400.0,0.0003315,8]
[359989898,1746466253994,-2166.02,0.0003315,8]
[359989899,1746466254003,-410.67542105,0.0003315,8]
[359989900,1746466254013,-400.0,0.0003315,8]
[359989901,1746466254022,-495.11,0.0003315,8]
[359989902,1746466254031,-400.0,0.0003315,8]
[359989903,1746466254041,-478.21,0.0003315,8]
[359989904,1746466254050,-828.45,0.0003315,8]
[359989905,1746466254060,-400.0,0.0003315,8]
[359989906,1746466254069,-2370.89,0.0003315,8]
[359989907,1746466254078,-400.0,0.0003315,8]
[359989908,1746466254087,-833.54,0.0003315,8]
[359989909,1746466254097,-400.0,0.0003315,8]
[359989910,1746466254107,-400.0,0.0003315,8]
[359989911,1746466254116,-11132.27,0.0003315,8]
[359989912,1746466254126,-414.2,0.0003315,8]
[359989913,1746466254135,-404.02571464,0.0003315,8]
[359989914,1746466254143,-1942.95,0.0003315,8]
[359989915,1746466254153,-400.0,0.0003315,8]
[359989916,1746466254163,-617.39,0.0003315,8]
[359989917,1746466254173,-400.0,0.0003315,8]
[359989918,1746466254182,-400.0,0.0003315,8]
[359989919,1746466254192,-213.63879946,0.0003315,8]
[359989920,1746466254201,-534.63,0.0003315,8]
[359989921,1746466254211,-400.0,0.0003315,8]
[359989922,1746466254220,-400.0,0.0003315,8]
[359989923,1746466254229,-400.0,0.0003315,8]
[359989924,1746466254239,-832.63,0.0003315,8]
[359989925,1746466254248,-400.0,0.0003315,8]
[359989926,1746466254258,-400.0,0.0003315,8]
[359989927,1746466254267,-937.4,0.0003315,8]
[359989928,1746466254279,-400.0,0.0003315,8]
[359989929,1746466254288,-400.0,0.0003315,8]
[359989930,1746466254298,-6281.840601,0.0003315,2]
[359989931,1746466254307,-6281.840601,0.0003315,2]
[359989932,1746466254318,-6281.840601,0.0003315,2]
[359989933,1746466254328,-6281.840601,0.0003315,2]
[359989934,1746466254337,-1547.41,0.0003315,8]
[359989935,1746466254348,-9074.6,0.0003315,8]
[359989936,1746466254358,-1484.01,0.0003315,8]
[359989937,1746466254368,-400.0,0.0003315,8]
[359989938,1746466254377,-6281.840601,0.0003315,2]
[359989939,1746466254386,-6281.840601,0.0003315,2]
[359989940,1746466254395,-6281.840601,0.0003315,2]
[359989941,1746466254405,-400.0,0.0003315,8]
[359989942,1746466254415,-6281.840601,0.0003315,2]
[359989943,1746466254424,-400.0,0.0003315,8]
[359989944,1746466254433,-2080.35,0.0003315,8]
[359989945,1746466254443,-2232.97,0.0003315,8]
[359989946,1746466254453,-150.87519143,0.0003315,8]
[359989947,1746466254462,-1691.97,0.0003315,8]
[359989948,1746466254471,-400.0,0.0003315,8]
[359989949,1746466254481,-400.0,0.0003315,8]
[359989950,1746466254490,-400.0,0.0003315,8]
[359989951,1746466254500,-413.35129827,0.0003315,8]
[359989952,1746466254600,-400.0,0.0003315,8]
[359989953,1746466254610,-400.0,0.0003315,8]
[359989954,1746466254620,-400.0,0.0003315,8]
[359989955,1746466254630,-3521.81,0.0003315,8]
[359989956,1746466254640,-708.96,0.0003315,8]
[359989957,1746466254650,-551.13,0.0003315,8]
[359989958,1746466254660,-400.0,0.0003315,8]
[359989959,1746466254670,-400.0,0.0003315,8]
[359989960,1746466254679,-272.81392912,0.0003315,8]
[359989961,1746466254690,-553.1,0.0003315,8]
[359989962,1746466254700,-400.0,0.0003315,8]
[359989963,1746466254711,-586.27,0.0003315,8]
[359989964,1746466254721,-400.0,0.0003315,8]
[359989965,1746466254732,-400.0,0.0003315,8]
[359989966,1746466254742,-1186.53,0.0003315,8]
[359989967,1746466254752,-535.86,0.0003315,8]
[359989968,1746466254763,-400.0,0.0003315,8]
[359989969,1746466254773,-1986.73,0.0003315,8]
[359989970,1746466254782,-1000.0,0.0003315,8]
[359989971,1746466254793,-462.97,0.0003315,8]
[359989972,1746466254803,-406.42,0.0003315,8]
[359989973,1746466254812,-400.0,0.0003315,8]
[359989974,1746466254822,-402.903244,0.0003315,14]
[359989975,1746466254832,-402.903244,0.0003315,14]
[359989976,1746466254842,-400.0,0.0003315,8]
[359989977,1746466254852,-402.903244,0.0003315,14]
[359989978,1746466254862,-402.903244,0.0003315,14]
[359989979,1746466254871,-1488.07,0.0003315,8]
[359989980,1746466254881,-402.903244,0.0003315,14]
[359989981,1746466254891,-402.903244,0.0003315,14]
[359989982,1746466254901,-402.903244,0.0003315,14]
[359989983,1746466254911,-607.06,0.0003315,8]
[359989984,1746466254921,-402.903244,0.0003315,14]
[359989985,1746466254931,-1507.7,0.0003315,8]
[359989986,1746466254942,-4132.62,0.0003315,8]
[359989987,1746466254952,-1135.42,0.0003315,8]
[359989988,1746466254961,-681.33,0.0003315,8]
[359989989,1746466254972,-400.0,0.0003315,8]
[359989990,1746466254981,-500.0,0.0003315,14]
[359989991,1746466254990,-1080.08,0.0003315,8]
[359989992,1746466255000,-405.89665707,0.0003315,8]
[359989993,1746466255011,-400.0,0.0003315,8]
[359989994,1746466255021,-386.9315838,0.0003315,8]
[359989995,1746466255032,-151.0,0.0003315,14]
[359989996,1746466255043,-735.3,0.0003315,8]
[359989997,1746466255052,-299.116884,0.0003315,14]
[359989998,1746466255062,-400.0,0.0003315,8]
[359989999,1746466255071,-428.62857543,0.0003315,8]
[359990000,1746466255081,-681.17,0.0003315,8]
[359990001,1746466255091,-400.0,0.0003315,8]
[359990002,1746466255101,-4785.9,0.0003315,8]
[359990003,1746466255111,-400.0,0.0003315,8]
[359990004,1746466255121,-400.0,0.0003315,8]
[359990005,1746466255132,-400.0,0.0003315,8]
[359990006,1746466255142,-400.0,0.0003315,8]
[359990007,1746466255153,-400.0,0.0003315,8]
[359990008,1746466255163,-578.15,0.0003315,8]
[359990009,1746466255174,-400.0,0.0003315,8]
[359990010,1746466255184,-25922.47,0.0003315,8]
[359990011,1746466255194,-400.0,0.0003315,8]
[359990012,1746466255205,-400.0,0.0003315,8]
[359990013,1746466255215,-400.0,0.0003315,8]
[359990014,1746466255225,-3661.81,0.0003315,8]
[359990015,1746466255235,-400.0,0.0003315,8]
[359990016,1746466255245,-400.0,0.0003315,8]
[359990017,1746466255255,-400.0,0.0003315,8]
[359990018,1746466255265,-2781.29,0.0003315,8]
[359990019,1746466255279,-1064.62,0.0003315,8]
[359990020,1746466255289,-400.0,0.0003315,8]
[359990021,1746466255299,-400.0,0.0003315,8]
[359990022,1746466255309,-151.0,0.0003315,14]
[359990023,1746466255319,-400.0,0.0003315,8]
[359990024,1746466255329,-151.0,0.0003315,14]
[359990025,1746466255338,-151.0,0.0003315,14]
[359990026,1746466255349,-503.67122609,0.0003315,8]
[359990027,1746466255359,-611.37,0.0003315,8]
[359990028,1746466255369,-400.0,0.0003315,8]
[359990029,1746466255379,-400.0,0.0003315,8]
[359990030,1746466255389,-400.0,0.0003315,8]
[359990031,1746466255399,-3135.4,0.0003315,8]
[359990032,1746466255409,-1911.03,0.0003315,8]
[359990033,1746466255418,-3885.96,0.0003315,8]
[359990034,1746466255428,-7691.86,0.0003315,8]
[359990035,1746466255438,-400.0,0.0003315,8]
[359990036,1746466255447,-302.44081303,0.0003315,8]
[359990037,1746466255457,-400.0,0.0003315,8]
[359990038,1746466255466,-4527.66,0.0003315,8]
[359990039,1746466255476,-400.0,0.0003315,8]
[359990040,1746466255486,-400.0,0.0003315,8]
[359990041,1746466255495,-7054.49,0.0003315,8]
[359990042,1746466255507,-516.96,0.0003315,8]
[359990043,1746466255517,-604.47,0.0003315,8]
[359990044,1746466255526,-553.59,0.0003315,8]
[359990045,1746466255536,-400.0,0.0003315,8]
[359990046,1746466255545,-1553.26,0.0003315,8]
[359990047,1746466255555,-475.10063685,0.0003315,8]
[359990048,1746466255565,-1471.97,0.0003315,8]
[359990049,1746466255574,-400.0,0.0003315,8]
[359990050,1746466255583,-284.76256857,0.0003315,8]
[359990051,1746466255593,-400.0,0.0003315,8]
[359990052,1746466255602,-400.0,0.0003315,8]
[359990053,1746466255611,-400.0,0.0003315,8]
[359990054,1746466255621,-784.14,0.0003315,8]
[359990055,1746466255631,-2405.99,0.0003315,8]
[359990056,1746466255640,-566.19,0.0003315,8]
[359990057,1746466255650,-1800.71,0.0003315,8]
[359990058,1746466255660,-659.71,0.0003315,8]
[359990059,1746466255670,-400.0,0.0003315,8]
[359990060,1746466255680,-3076.91,0.0003315,8]
[359990061,1746466255690,-400.0,0.0003315,2]
[359990062,1746466255699,-405.21092957,0.0003315,8]
[359990063,1746466255709,-755.88,0.0003315,8]
[359990064,1746466255719,-400.0,0.0003315,8]
[359990065,1746466255729,-712.21,0.0003315,8]
[359990066,1746466255739,-400.0,0.0003315,8]
[359990067,1746466255748,-400.0,0.0003315,2]
[359990068,1746466255758,-1249.89,0.0003315,8]
[359990069,1746466255768,-411.12,0.0003315,8]
[359990070,1746466255778,-2513.46,0.0003315,8]
[359990071,1746466255788,-400.0,0.0003315,2]
[359990072,1746466255798,-151.0,0.0003315,14]
[359990073,1746466255807,-400.0,0.0003315,8]
[359990074,1746466255817,-151.0,0.0003315,14]
[359990075,1746466255827,-400.0,0.0003315,8]
[359990076,1746466255836,-400.0,0.0003315,8]
[359990077,1746466255846,-1291.97,0.0003315,8]
[359990078,1746466255855,-400.0,0.0003315,8]
[359990079,1746466255865,-400.0,0.0003315,8]
[359990080,1746466255874,-400.0,0.0003315,8]
[359990081,1746466255883,-400.0,0.0003315,8]
[359990082,1746466255892,-500.0,0.00033151,3]
[359990083,1746466255901,-151.0,0.00033151,3]
[359990084,1746466255912,-151.0,0.00033151,3]
[359990085,1746466255922,-151.0,0.00033151,3]
[359990086,1746466255932,-151.0,0.00033151,3]
[359990087,1746466255941,-151.0,0.00033151,3]
[359990088,1746466255951,-500.0,0.00033151,3]
[359990089,1746466255961,-151.0,0.00033151,3]
[359990090,1746466255971,-250.82137242,0.00033151,3]
[359990091,1746466255980,-151.0,0.00033151,3]
[359990092,1746466255990,-151.0,0.00033151,3]
[359990093,1746466256001,-668.0,0.00033151,3]
[359990094,1746466256011,-189.432403,0.00033165,2]
[359990095,1746466256020,-500.0,0.00033173,5]
[359990096,1746466256030,-500.0,0.00033173,5]
[359990097,1746466256039,-500.0,0.00033173,5]
[359990098,1746466256048,-500.0,0.00033173,5]
[359990099,1746466256058,-500.65908257,0.00033173,5]
[359990100,1746466256067,-150.0,0.00033173,5]
[359990101,1746466256077,-151.0,0.00033179,3]
[359990102,1746466256088,-151.0,0.00033179,3]
[359990103,1746466256097,-151.0,0.00033179,3]
[359990104,1746466256107,-500.0,0.00033179,3]
[359990105,1746466256116,-151.0,0.00033179,3]
[359990106,1746466256125,-668.0,0.00033179,3]
[359990107,1746466256135,-344.27777,0.000332,120]
[359990108,1746466256145,-160.0,0.000332,3]
[359990109,1746466256155,-841.77443764,0.000332,3]
[359990110,1746466256164,-198.0,0.00033206,3]
[359990111,1746466256174,-198.0,0.00033206,3]
[359990112,1746466256183,-500.0,0.00033206,3]
[359990113,1746466256193,-151.0,0.00033206,3]
[359990114,1746466256203,-668.0,0.00033206,3]
[359990115,1746466256214,-500.0,0.00033234,3]
[359990116,1746466256223,-151.0,0.00033234,3]
[359990117,1746466256311,-668.0,0.00033234,3]
[359990118,1746466256329,-343.60435048,0.00033261,3]
[359990119,1746466256339,-245.0,0.00033261,3]
[359990120,1746466256349,-668.0,0.00033261,3]
[359990121,1746466256359,-668.0,0.00033288,3]
[359990122,1746466256368,-668.0,0.00033316,3]
[359990123,1746466256378,-668.0,0.00033343,3]
[359990124,1746466256387,-192.099,0.00033358,35]
[359990125,1746466256397,-668.0,0.00033371,3]
[359990126,1746466256406,-668.0,0.00033398,3]
[359990127,1746466256416,-2251.34019744,0.0003342,2]
[359990128,1746466256425,-400.0,0.00033424,8]
[359990129,1746466256435,-1692.68,0.00033424,8]
[359990130,1746466256444,-244.386599,0.00033424,14]
[359990131,1746466256453,-244.386599,0.00033424,14]
[359990132,1746466256463,-244.386599,0.00033424,14]
[359990133,1746466256472,-408.19,0.00033424,8]
[359990134,1746466256482,-400.0,0.00033424,8]
[359990135,1746466256491,-152.886652,0.00033424,14]
[359990136,1746466256500,-400.0,0.00033424,8]
[359990137,1746466256510,-500.0,0.00033424,8]
[359990138,1746466256519,-621.86,0.00033424,8]
[359990139,1746466256529,-400.0,0.00033424,8]
[359990140,1746466256540,-400.0,0.00033424,8]
[359990141,1746466256550,-168.0969,0.00033424,14]
[359990142,1746466256560,-168.0969,0.00033424,14]
[359990143,1746466256570,-168.0969,0.00033424,14]
[359990144,1746466256579,-168.0969,0.00033424,14]
[359990145,1746466256589,-168.0969,0.00033424,14]
[359990146,1746466256599,-168.0969,0.00033424,14]
[359990147,1746466256608,-497.81,0.00033424,8]
[359990148,1746466256618,-400.0,0.00033424,8]
[359990149,1746466256627,-480.51,0.00033424,8]
[359990150,1746466256636,-441.76,0.00033424,8]
[359990151,1746466256647,-400.0,0.00033424,8]
[359990152,1746466256656,-400.0,0.00033424,8]
[359990153,1746466256665,-663.75,0.00033424,8]
[359990154,1746466256674,-468.83,0.00033424,8]
[359990155,1746466256685,-400.0,0.00033424,8]
[359990156,1746466256694,-400.0,0.00033424,8]
[359990157,1746466256703,-400.0,0.00033424,8]
[359990158,1746466256713,-650.06,0.00033424,8]
[359990159,1746466256723,-400.0,0.00033424,8]
[359990160,1746466256732,-400.0,0.00033424,8]
[359990161,1746466256747,-400.0,0.00033424,8]
[359990162,1746466256776,-400.0,0.00033424,8]
[359990163,1746466256794,-424.49,0.00033424,8]
[359990164,1746466256803,-183.373749,0.00033424,2]
[359990165,1746466256813,-183.373749,0.00033424,2]
[359990166,1746466256822,-183.373749,0.00033424,2]
[359990167,1746466256831,-400.0,0.00033424,8]
[359990168,1746466256840,-183.373749,0.00033424,2]
[359990169,1746466256850,-183.373749,0.00033424,2]
[359990170,1746466256858,-183.373749,0.00033424,2]
[359990171,1746466256867,-400.0,0.00033424,8]
[359990172,1746466256876,-400.0,0.00033424,8]
[359990173,1746466256886,-400.0,0.00033424,8]
[359990174,1746466256894,-584.19,0.00033424,8]
[359990175,1746466256903,-435.9974545,0.00033424,8]
[359990176,1746466256912,-400.0,0.00033424,8]
[359990177,1746466256921,-544.01,0.00033424,8]
[359990178,1746466256930,-445.11,0.00033424,8]
[359990179,1746466256939,-400.0,0.00033424,8]
[359990180,1746466256948,-400.0,0.00033424,8]
[359990181,1746466256957,-407.3208452,0.00033424,8]
[359990182,1746466256966,-400.0,0.00033424,8]
[359990183,1746466256976,-400.0,0.00033424,8]
[359990184,1746466256986,-400.0,0.00033424,8]
[359990185,1746466256995,-400.0,0.00033424,8]
[359990186,1746466257004,-596.14,0.00033424,8]
[359990187,1746466257014,-400.0,0.00033424,8]
[359990188,1746466257024,-407.26,0.00033424,8]
[359990189,1746466257035,-400.0,0.00033424,8]
[359990190,1746466257044,-400.0,0.00033424,8]
[359990191,1746466257054,-400.0,0.00033424,8]
[359990192,1746466257072,-400.0,0.00033424,8]
[359990193,1746466257096,-400.0,0.00033424,8]
[359990194,1746466257114,-407.65211754,0.00033424,8]
[359990195,1746466257123,-723.92,0.00033424,8]
[359990196,1746466257133,-400.67690075,0.00033424,2]
[359990197,1746466257142,-193.329014,0.00033424,14]
[359990198,1746466257151,-193.329014,0.00033424,14]
[359990199,1746466257160,-264.93869,0.00033424,14]
[359990200,1746466257170,-264.93869,0.00033424,14]
[359990201,1746466257179,-193.329014,0.00033424,14]
[359990202,1746466257189,-400.0,0.00033424,8]
[359990203,1746466257199,-193.32901,0.00033424,14]
[359990204,1746466257209,-601.89,0.00033424,8]
[359990205,1746466257219,-264.93869,0.00033424,14]
[359990206,1746466257228,-400.0,0.00033424,8]
[359990207,1746466257238,-264.93869,0.00033424,14]
[359990208,1746466257247,-400.0,0.00033424,8]
[359990209,1746466257256,-516.84,0.00033424,8]
[359990210,1746466257267,-409.54966815,0.00033424,8]
[359990211,1746466257279,-400.0,0.00033424,8]
[359990212,1746466257290,-744.57,0.00033424,8]
[359990213,1746466257299,-856.46,0.00033424,8]
[359990214,1746466257310,-763.86,0.00033424,8]
[359990215,1746466257319,-500.0,0.00033424,8]
[359990216,1746466257329,-283.71146016,0.00033424,8]
[359990217,1746466257339,-400.0,0.00033424,8]
[359990218,1746466257351,-400.0,0.00033424,8]
[359990219,1746466257361,-508.21,0.00033424,8]
[359990220,1746466257371,-400.0,0.00033424,8]
[359990221,1746466257380,-502.77,0.00033424,8]
[359990222,1746466257389,-2573.19,0.00033424,8]
[359990223,1746466257398,-400.0,0.00033424,8]
[359990224,1746466257407,-412.76,0.00033424,8]
[359990225,1746466257417,-400.0,0.00033424,8]
[359990226,1746466257426,-482.70888501,0.00033424,8]
[359990227,1746466257435,-1858.43,0.00033424,8]
[359990228,1746466257446,-663.7,0.00033424,8]
[359990229,1746466257455,-752.3,0.00033424,8]
[359990230,1746466257465,-400.0,0.00033424,8]
[359990231,1746466257474,-3742.18,0.00033424,8]
[359990232,1746466257483,-400.0,0.00033424,8]
[359990233,1746466257492,-742.46,0.00033424,8]
[359990234,1746466257501,-791.14,0.00033424,8]
[359990235,1746466257511,-500.0,0.00033424,8]
[359990236,1746466257520,-400.0,0.00033424,8]
[359990237,1746466257529,-400.0,0.00033424,8]
[359990238,1746466257539,-400.0,0.00033424,8]
[359990239,1746466257550,-400.0,0.00033424,8]
[359990240,1746466257560,-400.0,0.00033424,8]
[359990241,1746466257570,-400.0,0.00033424,8]
[359990242,1746466257579,-424.25,0.00033424,8]
[359990243,1746466257588,-400.0,0.00033424,8]
[359990244,1746466257597,-420.15463586,0.00033424,8]
[359990245,1746466257607,-257.51464499,0.00033424,8]
[359990246,1746466257616,-400.0,0.00033424,8]
[359990247,1746466257625,-400.0,0.00033424,8]
[359990248,1746466257634,-400.0,0.00033424,8]
[359990249,1746466257643,-400.0,0.00033424,8]
[359990250,1746466257652,-400.0,0.00033424,8]
[359990251,1746466257661,-400.0,0.00033424,8]
[359990252,1746466257671,-400.0,0.00033424,8]
[359990253,1746466257680,-971.48,0.00033424,8]
[359990254,1746466257689,-400.0,0.00033424,8]
[359990255,1746466257699,-400.0,0.00033424,8]
[359990256,1746466257708,-169.539145,0.00033424,14]
[359990257,1746466257717,-169.539145,0.00033424,14]
[359990258,1746466257726,-410.74,0.00033424,8]
[359990259,1746466257735,-400.0,0.00033424,8]
[359990260,1746466257744,-169.539145,0.00033424,14]
[359990261,1746466257753,-502.97,0.00033424,8]
[359990262,1746466257764,-169.539151,0.00033424,14]
[359990263,1746466257773,-1385.97,0.00033424,8]
[359990264,1746466257783,-828.56,0.00033424,8]
[359990265,1746466257792,-1013.68,0.00033424,8]
[359990266,1746466257802,-904.75,0.00033424,8]
[359990267,1746466257811,-400.0,0.00033424,8]
[359990268,1746466257821,-1542.95,0.00033424,8]